bitfinex/quotes_ETHUSD_20241101
["timestamp","ask_amount","ask_price","bid_price","bid_amount"]
[1730455574173,3.98152,2511.6,2511.3,0.86806703]
[1730455574591,3.98172,2511.5,2511.3,0.09136703]
[1730455574764,3.98172,2511.5,2511.1,0.7705]
[1730455575156,3.98172,2511.5,2511.2,0.09141385]
[1730455575652,3.98152,2511.6,2511.2,0.09141385]
[1730455576089,3.98171,2511.5,2511.2,0.09141385]
[1730455577111,3.98152,2511.6,2511.2,0.09141385]
[1730455577931,3.98172,2511.5,2511.2,0.09141385]
[1730455578578,0.878314,2511.5,2511.2,0.09141385]
[1730455578776,3.98194,2511.4,2511.2,0.09141385]
[1730455578979,3.982,2511.3,2511.0,0.5]
[1730455579274,3.982,2511.3,2511.1,0.0884645]
[1730455579711,3.98194,2511.4,2511.1,0.0884645]
[1730455579919,8.5319154,2511.4,2511.1,0.0884645]
[1730455580293,4.5499554,2511.4,2511.1,0.0884645]
[1730455581076,3.98194,2511.4,2511.1,0.0884645]
[1730455583977,3.98201,2511.3,2511.1,0.0884645]
[1730455584183,3.98194,2511.4,2511.1,0.0884645]
[1730455584929,7.96392,2511.4,2511.1,0.0884645]
[1730455585428,3.98194,2511.4,2511.1,0.0884645]
[1730455586131,3.9821,2511.3,2511.1,0.0884645]
[1730455588529,3.98194,2511.4,2511.1,0.0884645]
[1730455589027,7.96388,2511.4,2511.1,0.0884645]
[1730455589433,3.982,2511.3,2511.1,0.0884645]
[1730455589736,7.96389,2511.4,2511.1,0.0884645]
[1730455591395,3.98194,2511.4,2511.1,0.0884645]
[1730455592844,7.9639,2511.4,2511.1,0.0884645]
[1730455593546,7.96387,2511.4,2511.1,0.0884645]
[1730455594251,3.98193,2511.4,2511.1,0.0884645]
[1730455594937,3.982,2511.3,2511.1,0.0884645]
[1730455595552,3.98184,2511.4,2511.1,0.0884645]
[1730455596649,7.96377,2511.4,2511.1,0.0884645]
[1730455596857,3.98184,2511.4,2511.1,0.0884645]
[1730455597417,7.96378,2511.4,2511.1,0.0884645]
[1730455597629,3.98184,2511.4,2511.1,0.0884645]
[1730455597828,7.9638,2511.4,2511.1,0.0884645]
[1730455603034,3.98184,2511.4,2511.1,0.0884645]
[1730455603256,7.96379,2511.4,2511.1,0.0884645]
[1730455603461,3.98184,2511.4,2511.1,0.0884645]
[1730455604949,7.96381,2511.4,2511.1,0.0884645]
[1730455605336,3.98184,2511.4,2511.1,0.0884645]
[1730455606455,3.9821,2511.3,2511.1,0.0884645]
[1730455606664,3.98184,2511.4,2511.1,0.0884645]
[1730455606865,3.98163,2511.6,2511.2,0.7533]
[1730455607184,3.98163,2511.6,2511.0,2.32917035]
[1730455607185,3.98076,2512.1,2511.5,0.7533]
[1730455607356,3.98076,2512.1,2511.7,0.7533]
[1730455607545,3.98117,2511.9,2511.7,0.7533]
[1730455607746,3.98136,2511.7,2511.0,0.5]
[1730455607946,3.98169,2511.5,2511.1,0.8172]
[1730455608390,3.98203,2511.3,2511.1,0.8172]
[1730455609195,7.96416,2511.3,2511.0,0.5]
[1730455609490,3.98203,2511.3,2511.0,0.5]
[1730455613492,8.836522,2511.3,2511.0,0.5]
[1730455613712,3.98231,2511.1,2511.0,0.5]
[1730455615186,6.98231,2511.1,2511.0,0.57632045]
[1730455620595,3.98225,2511.2,2511.0,0.57632045]
[1730455622802,7.96451,2511.2,2511.0,0.57632045]
[1730455623004,9.2282052,2511.2,2511.0,0.57632045]
[1730455623417,5.2459452,2511.2,2511.0,0.57632045]
[1730455624132,9.2282052,2511.2,2511.0,0.57632045]
[1730455624521,5.2459452,2511.2,2511.0,0.57632045]
[1730455624726,3.98225,2511.2,2511.0,0.57632045]
[1730455625847,6.98192,2511.4,2511.1,0.8222]
[1730455626068,6.98192,2511.4,2511.2,0.07628472]
[1730455627120,3.982,2511.3,2511.2,0.07628472]
[1730455627442,5.896192,2511.3,2511.2,0.07628472]
[1730455627755,3.98222,2511.2,2511.0,0.5]
[1730455628847,5.078392,2511.3,2511.0,0.5]
[1730455629011,3.98186,2511.4,2511.1,0.8041]
[1730455630107,3.98209,2511.3,2511.1,0.8041]
[1730455632012,7.96421,2511.3,2511.1,0.8041]
[1730455632226,3.98209,2511.3,2511.0,0.5]
[1730455632643,3.98217,2511.2,2511.0,0.5]
[1730455632850,3.98231,2511.1,2511.0,0.5]
[1730455633156,4.380387,2511.2,2511.0,0.5]
[1730455634831,8.362627,2511.2,2511.0,0.5]
[1730455635026,7.77831,2511.1,2511.0,0.5]
[1730455635546,7.77831,2511.1,2511.0,0.57638128]
[1730455635756,8.9941797,2511.1,2511.0,0.57638128]
[1730455636811,8.9941797,2511.1,2511.0,0.5]
[1730455641778,3.9831,2510.7,2510.2,0.8029]
[1730455642278,3.9831,2510.7,2510.3,0.07673531]
[1730455642456,3.9831,2510.7,2510.2,0.8029]
[1730455642777,3.98314,2510.6,2510.3,0.07673531]
[1730455643080,3.98314,2510.6,2510.2,0.8029]
[1730455643384,3.98314,2510.6,2510.3,0.07673531]
[1730455643746,3.98314,2510.6,2510.2,0.8029]
[1730455643946,3.98314,2510.6,2510.4,0.07668845]
[1730455644148,3.98314,2510.6,2510.3,0.07673531]
[1730455644350,3.98314,2510.6,2510.5,0.07664159]
[1730455644540,3.98314,2510.6,2510.4,0.07668845]
[1730455644776,3.98314,2510.6,2510.5,0.07664159]
[1730455645129,3.98314,2510.6,2510.2,0.8029]
[1730455645328,3.98314,2510.6,2510.5,0.07664159]
[1730455645611,3.98314,2510.6,2510.2,0.8029]
[1730455645811,3.98314,2510.6,2510.5,0.07664159]
[1730455646014,3.98314,2510.6,2510.2,0.8029]
[1730455646525,0.7589,2510.7,2510.3,0.07673531]
[1730455646688,3.98337,2510.5,2510.3,0.07673531]
[1730455647021,3.98342,2510.4,2510.2,0.8029]
[1730455648933,3.98358,2510.3,2510.2,0.8029]
[1730455650217,3.98358,2510.3,2509.9,0.8168]
[1730455650532,3.98358,2510.3,2510.0,0.07698607]
[1730455652437,3.98343,2510.4,2510.0,0.07698607]
[1730455658459,3.98337,2510.5,2510.0,0.07698607]
[1730455658637,3.98337,2510.5,2510.1,0.8049]
[1730455658950,3.98315,2510.6,2510.2,0.0769358]
[1730455659125,3.0,2510.6,2510.3,0.7877]
[1730455659327,6.98329,2510.5,2510.4,0.07684208]
[1730455662358,3.0,2510.6,2510.4,0.07684208]
[1730455662651,6.98314,2510.6,2510.4,0.07684208]
[1730455664318,3.98314,2510.6,2510.4,0.07684208]
[1730455668741,3.98305,2510.7,2510.4,0.07684208]
[1730455669053,3.98311,2510.6,2510.4,0.07684208]
[1730455669448,3.98305,2510.7,2510.4,0.07684208]
[1730455669653,3.98313,2510.6,2510.4,0.07684208]
[1730455674878,3.98327,2510.5,2510.4,0.07684208]
[1730455678170,3.98327,2510.5,2510.1,0.8039]
[1730455678335,3.98327,2510.5,2510.4,0.07694066]
[1730455678670,3.98327,2510.5,2510.1,0.8039]
[1730455678828,3.98327,2510.5,2510.4,0.07694066]
[1730455679035,3.98327,2510.5,2510.1,0.8039]
[1730455679558,3.98327,2510.5,2510.2,0.07703438]
[1730455681050,3.98358,2510.3,2510.2,0.07703438]
[1730455681372,3.98358,2510.3,2510.2,0.07701409]
[1730455681536,7.96668,2510.5,2510.2,0.07701409]
[1730455681730,3.98343,2510.4,2509.9,4.76892]
[1730455681971,3.98343,2510.4,2510.0,0.07710783]
[1730455686183,3.98366,2510.3,2510.0,0.07710783]
[1730455686941,7.96695,2510.4,2510.0,0.07710783]
[1730455687285,3.98361,2510.3,2510.0,0.07710783]
[1730455691209,3.98343,2510.4,2510.0,0.07710783]
[1730455696002,7.96698,2510.4,2510.0,0.07710783]
[1730455696206,3.98343,2510.4,2510.0,0.07710783]
[1730455697406,3.0,2510.5,2510.0,0.07710783]
[1730455697578,6.98334,2510.5,2510.1,0.8183]
[1730455697996,6.98334,2510.5,2510.2,0.07704306]
[1730455698505,3.98347,2510.4,2510.2,0.07704306]
[1730455703893,3.0,2510.5,2510.2,0.07704306]
[1730455704091,3.9833,2510.5,2510.2,0.07704306]
[1730455704862,8.254443,2510.6,2510.2,0.07704306]
[1730455705028,3.98344,2510.4,2510.2,0.07704306]
[1730455708642,3.98327,2510.5,2510.2,0.07704306]
[1730455713125,7.96662,2510.5,2510.2,0.07704306]
[1730455713834,3.98327,2510.5,2510.2,0.07704306]
[1730455719968,7.96662,2510.5,2510.2,0.07704306]
[1730455720371,3.98327,2510.5,2510.2,0.07704306]
[1730455721171,3.98327,2510.5,2510.3,0.8029]
[1730455721362,3.98327,2510.5,2510.4,0.07695806]
[1730455726787,3.98327,2510.5,2510.1,0.7518]
[1730455727189,3.98327,2510.5,2510.2,0.07706915]
[1730455739565,11.73579,2510.6,2510.2,0.07706915]
[1730455739900,3.98331,2510.5,2510.2,0.07706915]
[1730455740364,7.75253,2510.6,2510.2,0.07706915]
[1730455740566,6.98313,2510.6,2510.2,0.07706915]
[1730455741313,10.96639,2510.6,2510.2,0.07706915]
[1730455741599,4.78662,2510.8,2510.2,0.07706915]
[1730455741906,3.98247,2511.0,2510.6,0.7898]
[1730455742200,3.98236,2511.1,2510.6,0.7898]
[1730455742456,3.98236,2511.1,2510.7,0.07681751]
[1730455742901,3.0,2511.0,2510.7,0.07681751]
[1730455743201,4.75478,2511.5,2510.8,0.7686]
[1730455743406,3.98185,2511.4,2510.9,3.98262]
[1730455743596,3.98185,2511.4,2511.0,0.7814]
[1730455743759,3.98185,2511.4,2511.1,0.0764997]
[1730455744392,4.75478,2511.5,2511.1,0.0764997]
[1730455744705,3.98204,2511.3,2511.1,0.0764997]
[1730455745899,3.98215,2511.2,2511.1,0.0764997]
[1730455746262,7.74185,2511.2,2511.1,0.0764997]
[1730455746660,3.98313,2510.6,2510.2,0.7858]
[1730455746917,3.98345,2510.4,2510.0,0.7858]
[1730455747065,3.98345,2510.4,2510.3,0.07158088]
[1730455747264,3.9836,2510.3,2510.0,0.7858]
[1730455747497,3.98346,2510.4,2510.0,0.7858]
[1730455747706,3.98346,2510.4,2510.1,0.07167461]
[1730455747902,7.96665,2510.5,2510.1,0.07167461]
[1730455748265,3.98345,2510.4,2510.1,0.07167461]
[1730455748466,3.98328,2510.5,2510.1,0.07167461]
[1730455749497,7.9667,2510.5,2510.1,0.07167461]
[1730455749698,3.98328,2510.5,2510.1,0.07167461]
[1730455750104,3.98357,2510.4,2510.1,0.07167461]
[1730455750601,3.9836,2510.3,2510.1,0.07167461]
[1730455751066,7.96669,2510.5,2510.1,0.07167461]
[1730455751266,3.98328,2510.5,2510.1,0.07167461]
[1730455753609,4.74275,2510.7,2510.1,0.36989067]
[1730455753777,3.0,2510.6,2510.2,3.98373]
[1730455753986,3.0,2510.6,2510.3,0.82774611]
[1730455754169,3.98305,2510.7,2510.3,0.82774611]
[1730455754573,3.98313,2510.6,2510.3,0.82774611]
[1730455754908,3.98305,2510.7,2510.3,0.82774611]
[1730455755269,3.98316,2510.6,2510.3,0.82774611]
[1730455755679,3.98305,2510.7,2510.3,0.82774611]
[1730455755879,3.0,2510.8,2510.3,0.82774611]
[1730455756109,6.98284,2510.8,2510.3,4.81120611]
[1730455757500,3.0,2510.8,2510.4,3.98342]
[1730455757697,3.0,2510.8,2510.5,0.07177122]
[1730455758411,6.9828,2510.8,2510.5,0.07177122]
[1730455758615,6.9828,2510.8,2510.3,0.756]
[1730455758816,6.9828,2510.8,2510.4,0.07181808]
[1730455762742,3.0,2510.8,2510.4,0.07181808]
[1730455763504,6.98284,2510.8,2510.4,0.07181808]
[1730455763942,3.98327,2510.5,2510.4,0.07181808]
[1730455765430,3.98163,2511.6,2510.9,0.7945]
[1730455765636,3.98149,2511.7,2510.9,0.7945]
[1730455765922,3.98196,2511.4,2511.0,0.07149931]
[1730455766716,7.96395,2511.4,2511.0,0.07149931]
[1730455766913,3.98196,2511.4,2511.0,0.07149931]
[1730455768627,3.0,2511.5,2511.0,0.07149931]
[1730455768960,3.98159,2511.6,2511.0,4.35207537]
[1730455769119,3.0,2511.6,2511.1,4.81522]
[1730455769318,3.0,2511.6,2511.1,4.88650147]
[1730455769516,3.0,2511.7,2511.2,1.82917035]
[1730455769722,3.9813,2511.8,2511.1,4.88655147]
[1730455769921,3.9813,2511.8,2511.3,0.07118782]
[1730455769922,3.98139,2511.7,2511.3,0.07118782]
[1730455770155,3.98139,2511.7,2511.2,4.05318177]
[1730455770387,3.98139,2511.7,2511.4,0.07093813]
[1730455770558,3.98139,2511.7,2511.3,0.07098495]
[1730455770765,3.98139,2511.7,2511.5,0.07089131]
[1730455771085,7.9626,2511.8,2511.6,0.07084449]
[1730455771394,3.9813,2511.8,2511.3,3.98199]
[1730455771560,4.80505,2511.9,2511.1,8.79741]
[1730455771761,3.98137,2511.7,2511.2,3.98215]
[1730455771965,3.98137,2511.7,2511.2,4.05318177]
[1730455776379,3.98137,2511.7,2511.2,0.07103177]
[1730455776587,3.98137,2511.7,2511.2,4.05318177]
[1730455778789,4.8051,2511.9,2511.3,3.98197]
[1730455779194,4.8051,2511.9,2511.4,0.07093813]
[1730455779567,3.9813,2511.8,2511.4,0.07093813]
[1730455780722,4.8051,2511.9,2511.4,0.07093813]
[1730455781034,3.9812,2511.8,2511.5,0.07083914]
[1730455781319,3.9812,2511.8,2511.3,3.98198]
[1730455781531,3.9812,2511.8,2511.6,0.07079233]
[1730455781683,3.9812,2511.8,2511.3,3.98198]
[1730455781883,3.9812,2511.8,2511.7,0.07074552]
[1730455782084,4.8051,2511.9,2511.3,3.98187]
[1730455782322,3.9812,2511.8,2511.7,0.07074552]
[1730455782527,3.9812,2511.8,2511.3,3.98187]
[1730455782735,3.9812,2511.8,2511.7,0.07074552]
[1730455782894,3.9812,2511.8,2511.3,3.98187]
[1730455783549,3.9812,2511.8,2511.4,0.07088596]
[1730455785507,3.98136,2511.7,2511.4,0.07088596]
[1730455785832,3.98131,2511.8,2511.4,0.07088596]
[1730455786016,4.70476518,2511.8,2511.4,0.07088596]
[1730455786545,0.72345518,2511.8,2511.4,0.07088596]
[1730455787034,4.70468518,2511.8,2511.4,0.07088596]
[1730455787841,0.72345518,2511.8,2511.4,0.07088596]
[1730455788046,3.98136,2511.7,2511.4,0.07088596]
[1730455788246,0.72345518,2511.8,2511.4,0.07088596]
[1730455788447,4.70475518,2511.8,2511.5,0.07081248]
[1730455788645,4.70475518,2511.8,2511.2,3.98215]
[1730455788828,4.70475518,2511.8,2511.3,0.07090612]
[1730455789239,4.70475518,2511.8,2511.2,3.98215]
[1730455789441,4.70475518,2511.8,2511.3,0.07090612]
[1730455789625,4.70475518,2511.8,2511.2,3.98215]
[1730455789626,4.70475518,2511.8,2511.2,3.98203]
[1730455790164,4.70475518,2511.8,2511.3,0.07090612]
[1730455790539,4.70475518,2511.8,2511.3,4.05289612]
[1730455790849,4.70475518,2511.8,2511.4,0.07085929]
[1730455792162,4.70475518,2511.8,2511.3,3.98199]
[1730455792338,4.70475518,2511.8,2511.5,0.07081248]
[1730455792534,0.72345518,2511.8,2511.5,4.77848]
[1730455792748,3.824,2511.9,2511.6,0.07076566]
[1730455793163,3.0,2511.9,2511.6,0.07076566]
[1730455795680,6.98106,2511.9,2511.6,0.07076566]
[1730455796781,3.0,2511.9,2511.6,0.07076566]
[1730455797810,6.98105,2511.9,2511.6,0.07076566]
[1730455802418,4.09811268,2511.9,2511.6,0.07076566]
[1730455803429,8.07919268,2511.9,2511.6,0.07076566]
[1730455807668,3.98128,2511.8,2511.6,0.07076566]
[1730455807851,8.07919268,2511.9,2511.6,0.07076566]
[1730455808010,12.06033268,2511.9,2511.4,4.74282]
[1730455808205,12.06033268,2511.9,2511.5,0.07083854]
[1730455808641,8.07919268,2511.9,2511.5,0.07083854]
[1730455808818,6.98108,2511.9,2511.5,0.07083854]
[1730455809348,10.96222,2511.9,2511.5,0.07083854]
[1730455809516,6.98108,2511.9,2511.5,0.07083854]
[1730455810045,10.96225,2511.9,2511.5,0.07083854]
[1730455810208,6.98108,2511.9,2511.5,0.07083854]
[1730455811816,10.96223,2511.9,2511.5,0.07083854]
[1730455812617,6.98108,2511.9,2511.5,0.07083854]
[1730455812818,3.0,2511.9,2511.5,0.07083854]
[1730455813005,4.73655,2512.5,2511.7,0.8004]
[1730455813216,3.98035,2512.4,2511.9,0.7933]
[1730455813456,4.73655,2512.5,2511.9,4.77433]
[1730455813752,4.73655,2512.5,2512.1,0.7933]
[1730455813753,3.98015,2512.5,2512.1,0.7933]
[1730455813969,4.459105,2512.5,2512.1,0.7933]
[1730455814142,3.98035,2512.4,2512.2,0.07045876]
[1730455816284,3.98041,2512.3,2512.2,0.07045876]
[1730455817573,3.98035,2512.4,2512.2,0.07045876]
[1730455817773,3.98035,2512.4,2511.9,0.8275]
[1730455817989,6.98035,2512.4,2512.3,0.07041197]
[1730455818140,3.98035,2512.4,2511.9,0.8275]
[1730455818467,3.98035,2512.4,2511.9,4.80853]
[1730455818672,3.98035,2512.4,2512.0,0.07055235]
[1730455819674,7.96072,2512.4,2512.0,0.07055235]
[1730455819841,3.98049,2512.3,2512.0,0.07055235]
[1730455820639,3.98035,2512.4,2512.0,0.07055235]
[1730455830081,0.8094,2512.7,2512.0,0.07055235]
[1730455830082,7.78921,2512.7,2512.1,0.8107]
[1730455830287,3.98002,2512.6,2512.2,0.87838962]
[1730455830586,3.98005,2512.6,2512.2,0.87838962]
[1730455830753,6.97981,2512.7,2512.2,0.87838962]
[1730455831270,10.95973,2512.7,2512.2,0.87838962]
[1730455831576,6.97981,2512.7,2512.2,0.87838962]
[1730455831752,3.97994,2512.6,2512.2,0.87838962]
[1730455832345,3.97994,2512.6,2512.2,0.92189402]
[1730455832760,6.97981,2512.7,2512.3,0.7959]
[1730455833183,6.97981,2512.7,2512.4,0.11114551]
[1730455834767,3.97981,2512.7,2512.4,0.11114551]
[1730455836145,3.97995,2512.6,2512.4,0.11114551]
[1730455841191,3.829,2513.0,2512.4,0.11114551]
[1730455841354,3.97986,2512.7,2512.4,0.11114551]
[1730455841690,7.95973,2512.7,2512.4,0.11114551]
[1730455841849,3.97986,2512.7,2512.4,0.11114551]
[1730455842786,3.97986,2512.7,2512.5,0.8294]
[1730455843085,3.97958,2512.9,2512.6,0.11081757]
[1730455843284,3.97932,2513.0,2512.6,0.11081757]
[1730455843588,3.9795,2512.9,2512.6,0.11081757]
[1730455845502,7.95911,2512.9,2512.6,0.11081757]
[1730455845861,3.97964,2512.8,2512.6,0.11081757]
[1730455846997,3.97978,2512.7,2512.6,0.11081757]
[1730455847170,6.97978,2512.7,2512.6,0.11081757]
[1730455847365,3.97997,2512.6,2512.2,0.8258]
[1730455847561,3.98009,2512.5,2512.2,0.8258]
[1730455849472,3.97997,2512.6,2512.2,0.8258]
[1730455849792,3.98009,2512.5,2512.2,0.8258]
[1730455850216,3.97997,2512.6,2512.2,0.8258]
[1730455850365,3.98012,2512.5,2512.2,0.8258]
[1730455852211,3.98028,2512.4,2512.2,0.8258]
[1730455852796,3.98041,2512.3,2511.9,0.8182]
[1730455853539,3.872899,2512.3,2511.5,0.8182]
[1730455853709,3.981,2512.0,2511.5,0.8182]
[1730455854629,7.96199,2512.0,2511.5,0.8182]
[1730455854834,3.98099,2512.0,2511.5,0.8182]
[1730455854998,7.96196,2512.0,2511.5,0.8182]
[1730455855759,3.98097,2512.0,2511.5,0.8182]
[1730455856140,3.98097,2512.0,2511.5,4.79987]
[1730455856642,3.98097,2512.0,2511.5,0.8182]
[1730455856837,7.96196,2512.0,2511.5,0.8182]
[1730455857275,3.98107,2511.9,2511.5,0.8182]
[1730455859563,3.98097,2512.0,2511.5,0.8182]
[1730455859763,7.96197,2512.0,2511.5,0.8182]
[1730455860384,3.98105,2511.9,2511.6,0.09108076]
[1730455860587,3.98122,2511.8,2511.6,0.09108076]
[1730455868600,4.74687,2512.0,2511.6,0.09108076]
[1730455868752,3.98106,2511.9,2511.6,0.09108076]
[1730455875094,3.98127,2511.8,2511.6,0.09108076]
[1730455875485,3.98121,2511.8,2511.6,0.09108076]
[1730455876604,6.98136,2511.7,2511.6,0.09108076]
[1730455876911,7.80026,2511.7,2511.6,0.09108076]
[1730455877202,7.80026,2511.7,2511.0,4.73685]
[1730455877203,6.98167,2511.6,2511.0,4.73685]
[1730455877564,3.98171,2511.5,2511.0,4.73685]
[1730455878202,3.98136,2511.7,2511.2,0.8229]
[1730455878412,3.9813,2511.8,2511.3,4.80489]
[1730455878776,4.77075,2511.9,2511.5,0.8229]
[1730455878777,3.0,2511.9,2511.5,0.8229]
[1730455878980,3.98098,2512.0,2511.5,4.80457]
[1730455879517,3.98041,2512.3,2511.6,0.7501]
[1730455879817,0.7714,2512.4,2511.6,0.7501]
[1730455879818,3.98097,2512.0,2511.6,0.7501]
[1730455880370,3.98067,2512.2,2511.6,0.7501]
[1730455880567,3.98036,2512.4,2511.8,0.7501]
[1730455880813,3.98036,2512.4,2511.9,3.98095]
[1730455880995,7.96012,2512.6,2512.0,4.73098]
[1730455881201,3.98015,2512.5,2512.0,4.73098]
[1730455881582,3.98015,2512.5,2512.1,0.7967]
[1730455882006,3.98003,2512.6,2512.1,0.7967]
[1730455882186,7.96012,2512.6,2512.1,0.7967]
[1730455883124,3.98003,2512.6,2512.1,3.98068]
[1730455883311,3.98003,2512.6,2512.2,0.7808]
[1730455884620,7.96007,2512.6,2512.2,0.7808]
[1730455884916,3.98003,2512.6,2512.2,0.7808]
[1730455886304,7.96009,2512.6,2512.2,0.7808]
[1730455886493,3.98013,2512.5,2512.2,0.7808]
[1730455887619,8.7219,2512.6,2512.2,0.7808]
[1730455887819,3.98018,2512.5,2512.2,0.7808]
[1730455888190,3.98041,2512.3,2512.2,0.7808]
[1730455888823,3.98041,2512.3,2511.8,0.8004]
[1730455889210,3.98041,2512.3,2511.8,4.7816]
[1730455889530,3.98041,2512.3,2511.8,0.8004]
[1730455890309,3.98041,2512.3,2511.9,0.08184407]
[1730455890505,3.98026,2512.4,2512.0,0.8196]
[1730455890704,3.98026,2512.4,2512.1,0.08174701]
[1730455890906,3.98043,2512.3,2512.1,0.08174701]
[1730455892231,3.98026,2512.4,2512.1,0.08174701]
[1730455892949,7.9606,2512.4,2512.1,0.08174701]
[1730455893448,3.98005,2512.6,2512.1,0.08174701]
[1730455893641,3.98005,2512.6,2512.2,0.8226]
[1730455894010,6.97982,2512.7,2512.3,0.08157376]
[1730455894407,6.97982,2512.7,2512.2,0.8226]
[1730455894616,6.97982,2512.7,2512.4,0.08152524]
[1730455894924,6.97982,2512.7,2512.5,0.08147673]
[1730455895133,3.97962,2512.8,2512.2,4.80314]
[1730455895446,3.97962,2512.8,2512.3,0.08157376]
[1730455895743,3.97981,2512.7,2512.2,4.80316]
[1730455896048,3.97891179,2512.7,2512.3,0.08157376]
[1730455896406,3.97978,2512.7,2512.3,0.764]
[1730455896603,3.97962,2512.8,2512.4,0.08152524]
[1730455897443,7.95933,2512.8,2512.4,0.08152524]
[1730455897627,7.95936,2512.8,2512.4,0.08152524]
[1730455897828,3.97962,2512.8,2512.4,0.08152524]
[1730455898235,7.95936,2512.8,2512.4,0.08152524]
[1730455898418,3.97953,2512.9,2512.4,0.08152524]
[1730455899133,3.97953,2512.9,2512.5,0.7947]
[1730455899644,3.97953,2512.9,2512.6,0.08127869]
[1730455900627,6.97941,2513.0,2512.6,0.08127869]
[1730455900807,10.57903,2513.2,2512.7,0.7525]
[1730455901012,3.97931,2513.0,2512.7,0.7525]
[1730455901251,3.97931,2513.0,2512.8,0.08118168]
[1730455901411,3.97919,2513.1,2512.8,0.08118168]
[1730455901736,3.97919,2513.1,2512.9,0.08113318]
[1730455902052,3.97919,2513.1,2512.7,0.7525]
[1730455902554,3.97942,2513.0,2512.8,0.08118168]
[1730455902856,3.97942,2513.0,2512.7,0.7525]
[1730455903024,3.97942,2513.0,2512.9,0.08113318]
[1730455903222,3.97942,2513.0,2512.8,0.08118168]
[1730455903438,3.97942,2513.0,2512.9,0.08113318]
[1730455903807,3.97942,2513.0,2512.7,0.7525]
[1730455904043,3.97942,2513.0,2512.9,0.08099218]
[1730455904262,3.97942,2513.0,2512.8,0.08104068]
[1730455904464,3.97942,2513.0,2512.9,0.08099218]
[1730455904766,3.97942,2513.0,2512.7,0.7525]
[1730455905133,3.97942,2513.0,2512.8,0.08104068]
[1730455905467,3.97942,2513.0,2512.7,0.7525]
[1730455905627,3.97942,2513.0,2512.9,0.08099218]
[1730455905835,3.97942,2513.0,2512.8,0.08104068]
[1730455906032,3.97942,2513.0,2512.9,0.08099218]
[1730455906568,3.97918,2513.1,2512.9,0.08099218]
[1730455906744,3.97918,2513.1,2512.7,0.7525]
[1730455906947,3.97918,2513.1,2512.8,0.08104068]
[1730455907128,3.97918,2513.1,2512.7,0.7525]
[1730455907465,3.97918,2513.1,2512.8,0.08104068]
[1730455907668,3.97946,2512.9,2512.8,0.08104068]
[1730455907923,3.97946,2512.9,2512.3,0.7709]
[1730455907924,3.97955,2512.9,2512.3,0.7709]
[1730455908174,7.95914,2512.9,2512.3,4.75122]
[1730455908463,3.97971,2512.8,2512.4,0.08123472]
[1730455910350,3.97981,2512.7,2512.4,0.08123472]
[1730455915437,3.98009,2512.6,2512.4,0.08123472]
[1730455915599,3.98009,2512.5,2512.4,0.08123472]
[1730455916905,4.852189,2512.5,2512.4,0.08123472]
[1730455917206,3.98049,2512.3,2512.1,0.7842]
[1730455918189,3.98009,2512.5,2512.1,0.7842]
[1730455918468,3.98026,2512.4,2512.1,0.7842]
[1730455920452,3.98026,2512.4,2512.2,0.07588756]
[1730455923029,7.80221,2512.3,2512.2,0.07588756]
[1730455923483,7.80221,2512.3,2511.2,0.8022]
[1730455923484,3.98166,2511.6,2511.2,0.8022]
[1730455923912,3.98166,2511.6,2511.3,0.06863436]
[1730455924214,3.98166,2511.6,2511.2,0.8022]
[1730455924591,3.98185,2511.4,2511.3,0.06863436]
[1730455925127,3.98185,2511.4,2511.2,0.8022]
[1730455925281,3.98185,2511.4,2511.3,0.06863436]
[1730455925935,3.98185,2511.4,2511.2,0.8022]
[1730455926121,3.98185,2511.4,2511.3,0.06863436]
[1730455926922,3.98185,2511.4,2511.2,0.8022]
[1730455927325,3.98185,2511.4,2511.3,0.06863436]
[1730455927629,3.98185,2511.4,2511.2,0.8022]
[1730455927835,3.98185,2511.4,2511.3,0.06863436]
[1730455928129,3.98185,2511.4,2511.2,0.8022]
[1730455928428,3.98185,2511.4,2511.3,0.06863436]
[1730455928588,3.98185,2511.4,2511.2,0.8022]
[1730455928788,3.98185,2511.4,2511.3,0.06863436]
[1730455928990,0.8218,2511.7,2510.9,0.7857]
[1730455929190,3.98233,2511.1,2510.9,0.7857]
[1730455929436,7.96474,2511.1,2510.6,0.7857]
[1730455930233,3.98265,2510.9,2510.6,0.7857]
[1730455931140,3.98279,2510.8,2510.3,0.7528]
[1730455932165,3.98304,2510.7,2510.3,0.7528]
[1730455932330,3.98304,2510.7,2510.1,0.7528]
[1730455932527,3.98304,2510.7,2510.1,4.73666]
[1730455932917,3.98304,2510.7,2510.1,0.7528]
[1730455933132,3.9833,2510.5,2510.1,0.7528]
[1730455934452,7.96672,2510.5,2510.1,0.7528]
[1730455934656,7.96666,2510.5,2510.1,0.7528]
[1730455934818,3.9833,2510.5,2510.1,0.7528]
[1730455935253,3.98343,2510.4,2510.1,0.7528]
[1730455935436,3.9833,2510.5,2510.1,0.7528]
[1730455935651,3.9833,2510.5,2510.2,0.06762545]
[1730455936730,3.9832,2510.6,2510.2,0.06762545]
[1730455939273,3.98331,2510.5,2510.2,0.06762545]
[1730455940772,3.98304,2510.7,2510.2,0.06762545]
[1730455941142,6.98222,2511.2,2510.7,3.98284]
[1730455941143,3.98225,2511.2,2510.7,3.98284]
[1730455941353,4.75174,2511.4,2510.9,0.7666]
[1730455941559,3.98217,2511.2,2510.9,0.7666]
[1730455941773,3.98217,2511.2,2511.0,0.06723119]
[1730455942281,7.96443,2511.2,2511.0,0.06723119]
[1730455942476,3.98217,2511.2,2511.0,0.06723119]
[1730455943295,3.98231,2511.1,2511.0,0.06723119]
[1730455944157,3.98225,2511.2,2511.0,0.06723119]
[1730455944340,3.98231,2511.1,2511.0,0.06723119]
[1730455944947,3.98225,2511.2,2511.0,0.06723119]
[1730455946278,3.0,2511.3,2511.0,0.06723119]
[1730455946449,3.98192,2511.4,2511.0,0.06723119]
[1730455946650,7.9639,2511.4,2511.0,0.06723119]